Cogmind - Beta 15 @@@ ROGUE MODE // 2025.06.01 @ 01:26:49 Player: GlasMayne Result: Destroyed by Y-54 Guardian with Gatling Laser Performance ------------- Evolutions (3) 1500 Regions Visited (5) 1000 Robots Destroyed (84) 420 Value Destroyed (1930) 1930 Prototype IDs (12) 240 Alien Tech Used (0) 0 Bonus (45) 45 TOTAL SCORE: 5135 Bonus ------- High Alert Combat Kills 45 Cogmind --------- Core Integrity 0/700 Matter 116/300 Energy 159/160 System Corruption 4% Temperature Cool (21) Movement Core (700) Ox13 Location -7/Storage Parts ------- > --- POWER (1) -------- Light Nuclear Core > --- PROPULSION (4) --- (None) > --- UTILITY (5) ------ Large Storage Unit Advanced Visual Processing Unit Signal Interpreter > --- WEAPON (3) ------- Precision Beam Rifle Rocket Array Rocket Array > --- INVENTORY (15) --- Light Nuclear Core Improved Deuterium Engine Improved Cesium-ion Thruster Improved Cesium-ion Thruster Improved Cesium-ion Thruster Improved Cesium-ion Thruster Advanced Weight Redist. System Advanced Targeting Computer Recalibrator Precision Beam Rifle Enhanced Autogun Gauss Rifle Flak Gun Advanced Assault Cannon Heavy Missile Launcher Peak State ------------ > --- POWER ------------ Improved Deuterium Engine > --- PROPULSION ------- Improved Titanium Leg Improved Titanium Leg Improved Titanium Leg Improved Titanium Leg > --- UTILITY ---------- Large Storage Unit Advanced Visual Processing Unit Signal Interpreter Recoil Stabilizer Kinecellerator > --- WEAPON ----------- Gauss Rifle Improved Heavy Machine Gun Heavy Mace > --- INVENTORY -------- Light Nuclear Core Improved Deuterium Engine Improved Titanium Leg Medium Storage Unit Advanced Weight Redist. System Advanced Targeting Computer Recalibrator Gauss Rifle Flak Gun Advanced Assault Cannon Heavy Missile Launcher Rocket Array Rocket Array Rocket Array [Rating: 50] Favorites ----------- Power Improved Deuterium Engine Engine Improved Deuterium Engine Power Core Light Nuclear Core Propulsion Aluminum Leg Treads Advanced Treads Leg Aluminum Leg Wheel Wheel Hover Unit Improved Hover Unit Flight Unit Improved VTOL Module Utility Large Storage Unit Device Sensor Array Storage Large Storage Unit Processor Signal Interpreter Hackware Hacking Suite Weapon EM Pulse Gun Energy Gun EM Pulse Gun Ballistic Gun Gauss Rifle Ballistic Cannon Advanced Assault Cannon Launcher Rocket Array Impact Weapon Heavy Mace Build | -11 -10 -9 -8 -7 -7 ------- Run | Yrd Mat Mat Mat Fac Sto Slots Evolved 6 | . . 2 2 2 . Power . | . . . . . . Propulsion 2 | . . 1 . 1 . Utility 3 | . . 1 2 . . Weapon 1 | . . . . 1 . Parts Attached 86 | 7 8 7 11 23 30 Power 16 | 1 2 2 3 2 6 Engine 12 | 1 2 2 3 2 2 Core 4 | . . . . . 4 Reactor . | . . . . . . Propulsion 33 | 2 1 2 3 13 12 Treads 3 | . . . 2 . 1 Leg 9 | 2 1 1 . . 5 Wheel 2 | . . 1 1 . . Hover 17 | . . . . 11 6 Flight 2 | . . . . 2 . Utility 15 | 1 3 1 3 5 2 Device 7 | . . 1 1 3 2 Storage 3 | 1 2 . . . . Processor 3 | . . . 1 2 . Hackware 2 | . 1 . 1 . . Protection . | . . . . . . Artifact . | . . . . . . Weapon 22 | 3 2 2 2 3 10 Energy Gun 8 | 3 1 1 1 . 2 Energy Cannon . | . . . . . . Ballistic Gun 4 | . . . . 1 3 Ballistic Cannon 1 | . . . . 1 . Launcher 7 | . . 1 1 . 5 Special Weapon . | . . . . . . Impact Weapon 2 | . 1 . . 1 . Slashing Weapon . | . . . . . . Piercing Weapon . | . . . . . . Special Melee Weapon . | . . . . . . Unidentified Prototypes 10 | . . 2 1 2 5 Parts Lost 49 | . 3 2 11 9 24 Power 7 | . 1 . 1 1 4 Propulsion 24 | . 1 1 5 5 12 Utility 7 | . . . 2 2 3 Weapon 11 | . 1 1 3 1 5 Highest Loss Streak 8 | . 2 2 8 8 7 To Critical Strikes . | . . . . . . Average Backups 9 | 1 8 10 10 7 12 Power 1 | . . 1 1 . 1 Propulsion 2 | . 2 3 2 1 1 Utility 2 | . 2 2 2 4 3 Weapon 3 | . 2 4 3 . 5 Tool/Special . | . . . . . . Unused Backups 17 | . . 3 3 . 11 Power 3 | . . 1 1 . 1 Propulsion 6 | . . . . . 6 Utility 2 | . . . . . 2 Weapon 6 | . . 2 2 . 2 Tool/Special . | . . . . . . Average Slot Usage (%) 85 | . 91 88 91 76 81 Engine 7 | . 13 10 8 7 3 Treads 1 | . . . 9 . . Leg 14 | . 28 18 14 . 10 Hover 8 | . . . . 24 14 Device 6 | . . 11 15 6 5 Storage 9 | . 14 11 9 7 8 Processor 8 | . . . 9 12 15 Hackware 6 | . 13 11 8 3 . Energy Gun 9 | . 16 11 8 2 5 Ballistic Gun 2 | . . . . 3 6 Launcher 2 | . . 6 3 . 2 Impact Weapon 3 | . 4 4 4 2 3 Peak Build Rating 50 | 6 13 18 26 42 50 Average Rating 23 | 5 9 15 22 27 39 On Entrance 14 | . 6 13 18 9 42 Naked Turns . | . . . . . . Heaviest Build 48 | 12 32 33 38 37 48 Greatest Support 80 | 20 20 20 48 40 80 Greatest Overweight (x) 8 | . 2 3 3 2 8 Average Overweight (x) . | . . 2 1 . . Largest Inventory Capacity 15 | 8 15 15 15 15 15 Average Capacity 13 | 7 13 15 15 11 13 Most Carried 15 | 2 11 11 12 11 15 Average Carried 9 | 1 8 10 10 7 12 Final Capacity 15 | 8 15 15 15 10 15 Final Carried 15 | 2 11 11 9 6 15 Class Distribution -------------------- 82% | Mutant 12% | Skirmisher Dominant Class ---------------- Mutant | -10/Materials Mutant | -9/Materials Mutant | -8/Materials Mutant | -7/Factory Mutant | -7/Storage Resources | -11 -10 -9 -8 -7 -7 ----------- Run | Yrd Mat Mat Mat Fac Sto Matter Collected 1598 | 270 65 97 114 137 915 Remotely . | . . . . . . Salvage Created 2566 | 204 394 137 224 204 1403 Parts 153 | 15 21 15 25 15 62 Haulers Intercepted 4 | . 1 1 . . 2 Recyclers Shooed 4 | 1 1 . 1 1 . Parts Field Recycled . | . . . . . . Retrieved Matter . | . . . . . . Parts Self-Destructed . | . . . . . . Prevented . | . . . . . . Kills | -11 -10 -9 -8 -7 -7 ------- Run | Yrd Mat Mat Mat Fac Sto Combat Hostiles Destroyed 46 | . 4 3 11 4 24 Melee 2 | . . . . . 2 Guns 21 | . 2 1 3 4 11 AOE 17 | . . 2 7 . 8 Classes Destroyed 13 | 3 4 1 2 . 3 Worker 11 | 1 . 1 . . 9 Builder 9 | . . 2 2 1 4 Tunneler 4 | 4 . . . . . Hauler 4 | . 1 1 . . 2 Recycler 6 | 1 1 . . 1 3 Operator 2 | . 1 . . . 1 Watcher 2 | . 2 . . . . Swarmer 15 | . . . 8 4 3 Grunt 17 | . 4 3 . . 10 Duelist 1 | . . . . . 1 Sentry 10 | . . . 3 . 7 Hunter 1 | . . . . . 1 Programmer 2 | . . . . . 2 Best Kill Streak 10 | 3 3 3 10 3 8 Combat Bots Only 9 | . 1 2 9 3 5 Max Kills in Single Turn 5 | 1 1 2 3 1 5 Gunslinging . | . . . . . . Exploded 4 | . . 1 3 . 4 Melee 1 | . . . . . 1 Uniques/NPCs Destroyed . | . . . . . . Combat | -11 -10 -9 -8 -7 -7 -------- Run | Yrd Mat Mat Mat Fac Sto Hostile Shots Fired 890 | . 35 14 185 86 570 Missed 329 | . 13 4 49 34 229 Hits 561 | . 22 10 136 52 341 Melee 3 | . . . . 3 . Projectile 558 | . 22 10 136 49 341 Critical Strikes 13 | . . . 3 3 7 Damage Taken 6353 | 28 287 128 1565 923 3422 Core 1243 | . 24 54 460 177 528 Absorbed by Shields . | . . . . . . Core Remaining (%) 73 | 100 90 86 16 . . Volleys Fired 141 | 12 26 9 18 18 58 Largest 3 | 2 2 2 2 1 3 Hottest 161 | 80 80 85 85 55 161 Shots Fired 253 | 24 40 18 27 18 126 Gun 216 | 24 40 9 18 18 107 Cannon 8 | . . . . . 8 Launcher 29 | . . 9 9 . 11 Special . | . . . . . . Kinetic 62 | . . . . 9 53 Thermal 98 | . . 9 18 9 62 Explosive 29 | . . 9 9 . 11 Electromagnetic 64 | 24 40 . . . . Robot Hit Streak 16 | 6 10 2 6 4 16 Robot Miss Streak 9 | 2 3 1 1 9 3 Penetration Max . | . . . . . . Secondary Targets 2 | . 1 . . . 1 Max Gunslinging Chain 1 | . 1 . . . 1 Shots Hit Robots 187 | 14 30 9 14 15 105 Core Hits 136 | 6 11 10 17 15 77 Critical Kills . | . . . . . . Critical Parts Destroyed 10 | . . . 1 . 9 Critical Strikes 19 | 1 2 . 2 1 13 Burn 6 | . . . 1 1 4 Destroy 1 | . . . . . 1 Corrupt 3 | 1 2 . . . . Smash 9 | . . . 1 . 8 Melee Attacks 40 | . 5 . 5 2 28 Impact 40 | . 5 . 5 2 28 Slashing . | . . . . . . Piercing . | . . . . . . Sneak Attacks 7 | . . . . . 7 Combat Hostiles . | . . . . . . Follow-up Attacks . | . . . . . . Damage Inflicted 6159 | 190 545 373 861 227 3963 Guns 2418 | 166 430 77 232 201 1312 Cannons 85 | . . . . . 85 Explosions 2314 | 24 . 296 605 . 1389 Melee 1340 | . 113 . 24 26 1177 Ramming 2 | . 2 . . . . Kinetic 710 | . . . . 103 607 Thermal 1221 | 24 . 77 232 98 790 Explosive 2290 | . . 296 605 . 1389 Electromagnetic 596 | 166 430 . . . . Impact 1340 | . 113 . 24 26 1177 Slashing . | . . . . . . Piercing . | . . . . . . Highest Corruption 4 | . . . . 1 4 Average Corruption 1 | . . . . 1 1 Corruption Purged . | . . . . . . Corruption Blocked . | . . . . . . Effects 14 | . . . . 1 13 Message Errors 6 | . . . . 1 5 Matter Fused 2 | . . . . . 2 Heat Flow Errors 2 | . . . . . 2 Energy Discharges 1 | . . . . . 1 Data Loss (minor) 2 | . . . . . 2 Weapon Failures 1 | . . . . . 1 Overload Shots . | . . . . . . Overflow Damage 741 | . 4 . 42 . 695 Projectiles 23 | . . . . . 23 Explosions 89 | . . . 18 . 71 Melee 629 | . 4 . 24 . 601 Knockbacks 7 | . 1 . . 1 5 Impact 7 | . 1 . . 1 5 Kinetic . | . . . . . . Secondary . | . . . . . . Self-Inflicted Damage 60 | 28 . 18 . . 14 Shots 3 | 1 . 1 . . 1 Rammed . | . . . . . . Targets Rammed 1 | . 1 . . . . Kicked 1 | . 1 . . . . Crushed . | . . . . . . Highest Temperature 536 | 72 171 84 448 28 536 Average Temperature 104 | 30 71 30 87 11 150 Received Heat Transfer 2337 | . 162 60 594 288 1233 Effects 16 | . . . . . 16 Shutdowns 5 | . . . . . 5 Interference 5 | . . . . . 5 Matter Decay 1 | . . . . . 1 Short Circuit 1 | . . . . . 1 Damage (major) 4 | . . . . . 4 Siege Activations . | . . . . . . Martial Activations . | . . . . . . Shielding Activations . | . . . . . . Robots Disrupted . | . . . . . . Combat Hostiles . | . . . . . . Robots Corrupted 11 | . 2 . 1 . 8 Combat Hostiles 6 | . 2 . 1 . 3 Parts Fried 14 | 1 7 . 1 . 5 Impact Corruptions 24 | . 1 . 1 . 22 Robots Melted . | . . . . . . Combat Hostiles . | . . . . . . Parts Melted 6 | . . 1 . . 5 Heat Transferred 2973 | 50 . 148 518 259 1998 Parts Sabotaged . | . . . . . . Parts Stolen . | . . . . . . Parts Stripped . | . . . . . . Power Chain Reactions 1 | 1 . . . . . Alert | -11 -10 -9 -8 -7 -7 ------- Run | Yrd Mat Mat Mat Fac Sto Maximum Alert Level 2 | . . . 1 1 2 Low Security (%) 87 | 100 100 100 92 90 67 Level 1 10 | . . . 7 9 26 Level 2 2 | . . . . . 6 Level 3 . | . . . . . . Level 4 . | . . . . . . Level 5 . | . . . . . . High Security . | . . . . . . Max Security . | . . . . . . Peak Influence 519 | 10 47 50 210 217 519 Initial 76 | . 6 . 7 49 76 Average 67 | 2 6 16 36 69 151 Influence Increases 2062 | 30 161 119 296 410 1046 Destroy 0b10 Robot/C 920 | . 80 60 220 80 480 Destroy 0b10 Robot/NC 190 | 30 25 20 10 10 95 Destroy Leader 282 | . 36 22 50 20 154 Successful Hack 12 | . 5 . . . 7 Disable Machine 15 | . . . . . 15 Destroy Structure 193 | . . 17 16 . 160 Partial Spotted 30 | . . . . 15 15 Lose Combat Pursuer 420 | . 15 . . 285 120 Influence Decreases 1586 | 20 171 100 207 349 739 Entered New Map 168 | . 4 . 12 59 93 Time Decay 990 | 20 157 90 85 210 428 Lost Part 428 | . 10 10 110 80 218 Squads Dispatched 22 | . 2 3 4 2 11 Investigation 1 | . 1 . . . . Extermination 3 | . . . . 1 2 Reinforcement 14 | . 1 3 4 1 5 Assault . | . . . . . . Garrison 4 | . . . . . 4 Intercept . | . . . . . . Searches Triggered . | . . . . . . Construction Impeded 5 | . . 1 1 . 3 Haulers Reinforced . | . . . . . . Active Scanning Responses . | . . . . . . Cargo Convoy Interrupts . | . . . . . . Stealth | -11 -10 -9 -8 -7 -7 --------- Run | Yrd Mat Mat Mat Fac Sto Distress Signals 10 | . 1 1 2 1 5 Communications Jammed . | . . . . . . Distress Signals . | . . . . . . Times Spotted 98 | . 11 5 25 23 34 Peak Tracking Total 13 | . 4 2 13 10 9 Tactical Retreats 14 | . 1 . . 7 6 Traps | -11 -10 -9 -8 -7 -7 ------- Run | Yrd Mat Mat Mat Fac Sto Traps Triggered 5 | . 1 . . 3 1 Indirectly . | . . . . . . Trap Hack Attempts . | . . . . . . Triggered . | . . . . . . Disarmed . | . . . . . . Reprogrammed . | . . . . . . Reused . | . . . . . . Traps Extracted . | . . . . . . Installed . | . . . . . . Triggered . | . . . . . . Machines | -11 -10 -9 -8 -7 -7 ---------- Run | Yrd Mat Mat Mat Fac Sto Machines Disabled 1 | . . . . . 1 Max in Single Turn 1 | . . . . . 1 Machines Repaired . | . . . . . . Machines Dismantled . | . . . . . . Machines Sabotaged . | . . . . . . Overloaded Fab Kills . | . . . . . . Hacking | -11 -10 -9 -8 -7 -7 --------- Run | Yrd Mat Mat Mat Fac Sto Machines Accessed 6 | . 3 1 . . 2 Terminals 6 | . 3 1 . . 2 Fabricators . | . . . . . . Repair Stations . | . . . . . . Recycling Units . | . . . . . . Scanalyzers . | . . . . . . Garrison Access . | . . . . . . Total Hacks 15 | . 10 2 . . 3 Successful 9 | . 6 1 . . 2 Failed 6 | . 4 1 . . 1 Catastrophic 1 | . 1 . . . . Database Lockouts . | . . . . . . Manual 2 | . . . . . 2 Terminals 15 | . 10 2 . . 3 Fabricators . | . . . . . . Repair Stations . | . . . . . . Recycling Units . | . . . . . . Scanalyzers . | . . . . . . Garrison Access . | . . . . . . Terminal Hacks 9 | . 6 1 . . 2 Record 2 | . 2 . . . . Prototype ID Bank 1 | . 1 . . . . Open Door 1 | . . . . . 1 Alert Level 2 | . 1 . . . 1 Locate Traps 1 | . 1 . . . . Transport Status 1 | . 1 . . . . Hauler Manifests 1 | . . 1 . . . Fabricator Hacks . | . . . . . . Repair Station Hacks . | . . . . . . Recycling Unit Hacks . | . . . . . . Scanalyzer . | . . . . . . Garrison Access Hacks . | . . . . . . Unauthorized Hacks . | . . . . . . Terminals . | . . . . . . Fabricators . | . . . . . . Repair Stations . | . . . . . . Recycling Units . | . . . . . . Scanalyzers . | . . . . . . Garrison Access . | . . . . . . Data Cores Recovered 2 | . 1 . . . 1 Used . | . . . . . . Hacking Detections 4 | . 3 . . . 1 Full Trace Events 1 | . 1 . . . . Feedback Events . | . . . . . . Feedback Blocked . | . . . . . . Robot Schematics Acquired . | . . . . . . Robots Built . | . . . . . . Authchips . | . . . . . . Time . | . . . . . . Total Robot Build Rating . | . . . . . . Part Schematics Acquired . | . . . . . . Parts Built . | . . . . . . Authchips . | . . . . . . Time . | . . . . . . Total Part Build Rating . | . . . . . . Parts Repaired . | . . . . . . Time . | . . . . . . Parts Recycled . | . . . . . . Recycled Matter . | . . . . . . Retrieved Matter . | . . . . . . Retrieved Components . | . . . . . . Parts Scanalyzed . | . . . . . . Part Schematics Acquired . | . . . . . . Parts Damaged . | . . . . . . Bothacking | -11 -10 -9 -8 -7 -7 ------------ Run | Yrd Mat Mat Mat Fac Sto Used RIF Installer . | . . . . . . Robots Hacked . | . . . . . . Non-combat . | . . . . . . Combat . | . . . . . . Robot Hacks Applied . | . . . . . . Relay Couplers Released . | . . . . . . Fabnet Peak Effective % . | . . . . . . Robots Rewired . | . . . . . . Allies Hacked . | . . . . . . Hacks Repelled . | . . . . . . Allies | -11 -10 -9 -8 -7 -7 -------- Run | Yrd Mat Mat Mat Fac Sto Total Allies . | . . . . . . Largest Group . | . . . . . . Highest-Rated Group . | . . . . . . Highest-Rated Ally . | . . . . . . Total Orders . | . . . . . . Ally Attacks . | . . . . . . Total Damage . | . . . . . . Kills . | . . . . . . Allies Corrupted . | . . . . . . Allies Melted . | . . . . . . Intel | -11 -10 -9 -8 -7 -7 ------- Run | Yrd Mat Mat Mat Fac Sto Active Infowar (turns) 2191 | . . 310 472 258 1151 Optics 1356 | . . . . 205 1151 Sensors 782 | . . 310 472 . . Jamming 53 | . . . . 53 . Robot Analysis Total . | . . . . . . Derelict Logs Recovered . | . . . . . . Drone Launches . | . . . . . . Drone Recoveries . | . . . . . . Exploration | -11 -10 -9 -8 -7 -7 ------------- Run | Yrd Mat Mat Mat Fac Sto Turns Passed 3591 | 157 931 310 515 527 1151 Spaces Moved 2311 | 92 502 150 246 607 714 Core 21 | 2 . . 16 . 3 Treads 55 | . . . 31 . 24 Legs 1081 | 90 502 81 172 . 236 Wheels 96 | . . 69 27 . . Hover 1035 | . . . . 584 451 Flight 23 | . . . . 23 . Fastest Speed 38 | 50 120 125 95 40 38 Average Speed 120 | 118 163 176 174 68 105 Slowest Speed 450 | 120 260 330 225 176 450 Overloaded Moves . | . . . . . . Propulsion Burnouts . | . . . . . . Robots Hopped . | . . . . . . Potential Cave-ins 4 | . . . . . 4 Cave-ins Triggered . | . . . . . . Exploration Rate (%) 34 | 4 67 21 26 24 63 Regions Visited 5 Branch Regions 1 Pre-discovered Areas . | . . . . . . Known Exits Taken 2 | . . . 1 1 . Unknown Exits Taken 3 | 1 1 1 . . . Scrap Searched . | . . . . . . Spaces Dug . | . . . . . . Terrain Destroyed 318 | 4 . 18 17 . 279 Melee . | . . . . . . Projectile 5 | . . . . . 5 AOE 313 | 4 . 18 17 . 274 Terrain Rammed . | . . . . . . Walls Destroyed . | . . . . . . Machines Disabled . | . . . . . . Actions | -11 -10 -9 -8 -7 -7 --------- Run | Yrd Mat Mat Mat Fac Sto Total 2778 | 112 563 174 297 687 945 Wait 119 | . 9 . 5 18 87 Move 2306 | 91 501 149 245 606 714 Hop . | . . . . . . Pick Up 44 | 2 9 3 4 10 16 Fast Attach 40 | 6 4 4 4 9 13 Attach 22 | . 1 1 3 12 5 Detach 3 | . 1 1 1 . . Swap 41 | 1 3 4 6 9 18 Drop 21 | . 3 3 6 3 6 Fire 141 | 12 26 9 18 18 58 Melee 40 | . 5 . 5 2 28 Ram . | . . . . . . Kick 1 | . 1 . . . . Crush . | . . . . . . Escape Stasis . | . . . . . . Rewire . | . . . . . . Trap . | . . . . . . Miscellaneous . | . . . . . . Route ------- -11/Scrapyard -10/Materials (discovered 4 exits: *Mat x2 / [*Min x2]) -9/Materials -8/Materials -7/Factory -7/Storage History --------- Turn | Location | Event 27 | -11/Scrapyard | Discovered new exit (range 15) 158 | -11/Scrapyard | Entered Materials 297 | -10/Materials | Discovered new exit (range 12) 325 | -10/Materials | Build established: Mutant 345 | -10/Materials | Discovered new exit (range 16) 740 | -10/Materials | Discovered new exit (range 7) 998 | -10/Materials | Discovered new exit (range 3) 1089 | -10/Materials | Entered another Materials area 1089 | -9/Materials | Evolved 2 slots: Propulsion x1, Utility x1 1327 | -9/Materials | Discovered new exit (range 15) 1399 | -9/Materials | Entered another Materials area 1399 | -8/Materials | Evolved 2 slots: Utility x2 1851 | -8/Materials | Destroyed 9 combat bots 1853 | -8/Materials | Lost 3 parts (2n1w) 1882 | -8/Materials | Core integrity fell below 50% 1892 | -8/Materials | Discovered new exit (range 16) 1913 | -8/Materials | Identified exit to Factory 1914 | -8/Materials | Core integrity fell below 20% 1914 | -8/Materials | Entered Factory 1914 | -7/Factory | Evolved 2 slots: Propulsion x1, Weapon x1 1923 | -7/Factory | Lost 8 parts (1p3n2u2w) 2318 | -7/Factory | Lost 8 parts (1p4n2u1w) 2435 | -7/Factory | Discovered new exit (range 6) 2440 | -7/Factory | Identified exit to Storage 2441 | -7/Factory | Entered Storage 2456 | -7/Storage | Found Prototype Launcher 2462 | -7/Storage | Found Prototype Launcher 2465 | -7/Storage | Found Prototype Launcher 2474 | -7/Storage | Found Prototype Launcher 2529 | -7/Storage | Identified Rocket Array (x4) 2696 | -7/Storage | Lost 5 parts (1p2n1u1w) 2992 | -7/Storage | Core integrity fell below 50% 2994 | -7/Storage | Garrison activated, responded to threat 3031 | -7/Storage | Lost 5 parts (1p1n2u1w) 3098 | -7/Storage | Garrison activated, responded to threat 3145 | -7/Storage | Lost 7 parts (1p3n3w) 3269 | -7/Storage | Core integrity fell below 20% 3454 | -7/Storage | Build established: Skirmisher 3592 | -7/Storage | Destroyed by Y-54 Guardian with Gatling Laser Last Messages --------------- 03533_ Acquired 21 matter. 03534_ The unstable cave ceiling collapses. 03540_ R-06 Scavenger collects Aluminum Leg. 03542_ The unstable cave ceiling collapses. 03544_ W-25 Informer sends out distress signal. 03545_ The unstable cave ceiling collapses. 03551_ System corrupted: Heat flow error (+127). 03554_ The unstable cave ceiling collapses. 03559_ ALERT: Hostiles spotted, dispatching reinforcements to Terminal S003. 03560_ ALERT: Construction progress impeded, dispatching reinforcements to local area. 03580_ W-25 Informer sends out distress signal. 03581_ R-06 Scavenger suffers critical hit (Burn). 03581_ Tractor Beam melted. 03581_ R-06 Scavenger destroyed. 03583_ Acquired 73 matter. 03586_ Gravmag System destroyed. 03589_ Imp. Airjet destroyed. Map ----- +----------------------------------------------------+ | ????????????? ? ?????# # # ###?# " " # | | ????????????? ??????????## # #######T## " | | ?????????????? ????????# # =# ######## # | | ???????????????#???????? # # # ### | | ???????????????????????? # # # #?? | | ???????????????########## # *#% #?? | | ???????????????# # # = !*#?? | | ????????????????# # # ### =#! #?? | | ????????????????# # # # % # [### | | ????????????????# + != [ [ | | ????????????????# " # # = # # | | ????????????????# T # # # # # # # # ### | | ????????????????? " # # # # # ### #?? | | ????????????????# # # # ## ##?# #?? | | ????????????????######## # # # # # ##??# T#? | | ???????????????????????? ## # #! ######### ##? | | ??????????????????????????# !![ #""""?? | | ??????????????????????????# #####%/! #?????? | | ??????????????????????????# #???#/! ""#?????? | | ??????????????????????????# #???#!! ""#?????? | | ??????????????????????????# #???#!! G#?????? | | ??????????????????????????# #???#!/ ""#?????? | | ??????????????????????????# #???# ""#?????? | | ??????????????????????????#=#???# #?????? | | ???????????????############=#???# #?????? | | ?????? *Y@ =#???# #?????? | | ???????????????##############???############?????? | | ?????????????????????????????????????????????????? | | ?????????????????????????????????????????????????? | | ?????????????????????????????????????????????????? | | ?????????????????????????????????????????????????? | | | | | | | | | | | | | | | | | | | | | | | | | | | | | | | | | | | | | | | +----------------------------------------------------+ Best States ------------- Heat Dissipation 34 Energy Generation 18 Energy Capacity 310 Matter Stores 300 Matter Capacity 300 Sight Range 20 Robot Scan Range 14 Terrain Scan Density 10 Jamming Range 12 Additional Mass Support 9 Evasion (%) 57 Targeting Accuracy 8 Recoil Reduction 4 Kinecelleration 30 Offensive Hacking 10 Item Schematics ----------------- None Robot Schematics ------------------ None Fabricated ------------ Nothing Repaired ---------- Nothing Alien Tech Used ----------------- None Achievements -------------- None Challenges ------------ None Game ------ Seed CatalystRingDriveblaster Manual? 0 Play Time 00:40:14 Cumulative 20.2 hours Start 2025.06.01 @ 00:45:05 End 2025.06.01 @ 01:26:49 Sessions 1 Manual Loads 0 Difficulty Rogue Special Mode None Game No. 37 Rogue 37 Adventurer 0 Explorer 0 Win Type - Total 0 Types 0/0/0/0/0/0/0/0/0/0 Lore% 10 Gallery% 24 Achievement% 19 Wizard Run 0 Options --------- Layout 2 ASCII 0 Keyboard 1 Movement Numpad Keybinds 0 Fullscreen 1 Font 24/Smallcaps Map View 50x44 Zoom Use 0% Tactical HUD 1 Map Filters NONE Filters NONE Steam 1 RUN: 764b1e97-5b09-4b2e-ae10-4dd7813fa8e3